bitfinex/quotes_SOLUSD_20250630
["timestamp","ask_amount","ask_price","bid_price","bid_amount"]
[1751269597058,5.07967586,150.63,150.57,37.24565071]
[1751269597348,5.07967586,150.63,150.58,5.07967586]
[1751269599151,5.07967586,150.63,150.59,5.31243774]
[1751269599650,3.45988391,150.65,150.59,10.3921136]
[1751269599854,5.07967586,150.63,150.59,10.3921136]
[1751269601257,5.07967586,150.63,150.58,5.31279054]
[1751269601461,5.07967586,150.63,150.58,10.3924664]
[1751269601836,3.45988391,150.65,150.59,5.07967586]
[1751269602045,5.07967586,150.63,150.59,5.07967586]
[1751269602750,3.45988391,150.65,150.6,5.31208499]
[1751269602955,5.07967586,150.64,150.6,10.39176085]
[1751269604731,26.0,150.66,150.59,18.59337297]
[1751269604930,31.07967586,150.66,150.61,5.07967586]
[1751269605573,5.07967586,150.65,150.6,5.07967586]
[1751269606542,26.0,150.66,150.61,23.72932472]
[1751269606753,31.07967586,150.66,150.62,5.31137963]
[1751269607459,5.07967586,150.65,150.62,5.31137963]
[1751269608655,5.07967586,150.64,150.62,5.31137963]
[1751269608853,5.07967586,150.65,150.61,5.31173228]
[1751269609051,5.07967586,150.65,150.61,10.39140814]
[1751269610345,5.07967586,150.65,150.61,5.31173228]
[1751269612165,26.0,150.66,150.61,29.041057]
[1751269612361,31.07967586,150.66,150.61,29.041057]
[1751269612551,31.07967586,150.66,150.62,5.07967586]
[1751269613047,5.07967586,150.64,150.61,5.31173228]
[1751269613665,31.31012172,150.66,150.61,5.31173228]
[1751269613845,5.07967586,150.64,150.61,5.31173228]
[1751269614667,31.31012172,150.66,150.61,5.31173228]
[1751269614874,5.07967586,150.64,150.61,5.31173228]
[1751269615542,31.31012172,150.66,150.61,5.31173228]
[1751269615743,5.07967586,150.64,150.61,5.31173228]
[1751269616153,5.07967586,150.65,150.61,10.39140814]
[1751269616356,5.07967586,150.65,150.61,5.31173228]
[1751269616960,5.07967586,150.64,150.59,97.99179429]
[1751269618141,5.07967586,150.63,150.59,92.91211843]
[1751269618556,5.07967586,150.63,150.59,97.99179429]
[1751269618885,5.07967586,150.64,150.59,97.99179429]
[1751269619477,5.07967586,150.64,150.6,5.07967586]
[1751269619771,5.07967586,150.65,150.6,5.07967586]
[1751269620157,5.07967586,150.65,150.6,10.39146584]
[1751269620559,5.07967586,150.64,150.6,10.39146584]
[1751269620975,5.07967586,150.64,150.6,5.31178998]
[1751269624874,5.07967586,150.64,150.59,97.99206782]
[1751269625171,5.07967586,150.63,150.59,92.91237964]
[1751269625468,5.31072613,150.64,150.59,92.91237964]
[1751269625772,5.07967586,150.63,150.59,92.91237964]
[1751269627059,5.07967586,150.63,150.59,5.31237964]
[1751269629176,5.07967586,150.63,150.59,10.3920555]
[1751269629880,3.24983583,150.63,150.59,5.31237964]
[1751269630382,29.24983583,150.66,150.61,3.24983583]
[1751269630576,29.24983583,150.66,150.6,18.64964886]
[1751269630762,29.24983583,150.66,150.61,3.24983583]
[1751269631160,29.24983583,150.66,150.62,5.31137963]
[1751269631762,31.07602574,150.66,150.62,5.31137963]
[1751269631979,5.07602574,150.65,150.62,5.31137963]
[1751269633481,5.07602574,150.65,150.61,5.31173228]
[1751269638884,26.0,150.66,150.61,92.91173228]
[1751269639211,5.07602574,150.64,150.61,92.91171668]
[1751269639505,5.07602574,150.65,150.61,97.98774242]
[1751269639787,5.07602574,150.65,150.61,92.91171668]
[1751269640168,26.0,150.66,150.61,92.91171668]
[1751269640364,5.07602574,150.65,150.61,92.91171668]
[1751269641464,5.07602574,150.65,150.61,93.11171668]
[1751269641791,5.17602574,150.65,150.61,93.11171668]
[1751269643480,5.07602574,150.64,150.61,93.11171668]
[1751269644887,5.17602574,150.65,150.61,93.11171668]
[1751269645195,5.17602574,150.65,150.61,98.18774242]
[1751269645586,5.17602574,150.65,150.61,93.11171668]
[1751269651289,0.1,150.65,150.61,93.11171668]
[1751269651593,5.17602574,150.65,150.61,98.18774242]
[1751269651794,3.34887381,150.65,150.61,96.36059049]
[1751269652575,0.1,150.65,150.61,96.36059049]
[1751269652981,3.34887381,150.65,150.61,96.36059049]
[1751269653583,3.34887381,150.65,150.61,93.11171668]
[1751269653786,0.1,150.65,150.61,93.11171668]
[1751269654100,3.34887381,150.65,150.61,93.11171668]
[1751269655005,3.24887381,150.64,150.61,93.11171668]
[1751269655397,0.1,150.65,150.61,93.11171668]
[1751269655596,3.34887381,150.65,150.61,93.11171668]
[1751269656103,0.1,150.65,150.61,93.11171668]
[1751269656290,3.34887381,150.65,150.61,93.11171668]
[1751269657507,0.1,150.65,150.61,93.11171668]
[1751269657705,3.34887381,150.65,150.61,93.11171668]
[1751269660008,3.24887381,150.63,150.61,87.8]
[1751269660502,5.41061755,150.65,150.61,87.8]
[1751269660702,3.24887381,150.62,150.61,87.8]
[1751269662110,31.31109138,150.63,150.61,87.8]
[1751269662412,3.24887381,150.62,150.61,0.2]
[1751269662790,34.55996519,150.63,150.61,0.2]
[1751269667702,3.24887381,150.62,150.61,0.2]
[1751269670411,34.55996519,150.63,150.61,0.2]
[1751269670783,5.41045323,150.65,150.61,0.2]
[1751269670989,0.1,150.65,150.61,3.44887381]
[1751269671186,3.34887381,150.65,150.61,0.2]
[1751269671796,3.24887381,150.64,150.61,0.2]
[1751269673597,29.34887381,150.65,150.61,0.2]
[1751269673999,0.1,150.65,150.61,5.51146131]
[1751269674212,26.0,150.64,150.61,96.36033512]
[1751269676617,26.0,150.64,150.61,93.11146131]
[1751269676818,26.0,150.64,150.61,96.36033512]
[1751269678523,26.0,150.64,150.61,93.11146131]
[1751269680612,3.24887381,150.63,150.61,87.8]
[1751269680811,31.41060409,150.65,150.61,91.04887381]
[1751269680812,26.1,150.65,150.61,91.04887381]
[1751269681124,29.34887381,150.65,150.61,91.04887381]
[1751269681424,0.1,150.65,150.61,96.3605422]
[1751269681620,0.1,150.65,150.62,3.24887381]
[1751269681826,0.1,150.65,150.63,3.24887381]
[1751269682026,0.1,150.65,150.64,3.24887381]
[1751269683007,0.1,150.65,150.64,8.55954826]
[1751269685619,0.1,150.65,150.63,8.55990082]
[1751269687137,0.1,150.65,150.63,5.31102701]
[1751269688713,3.34887381,150.65,150.62,89.2428]
[1751269689108,3.34887381,150.65,150.62,1.6428]
[1751269691036,0.1,150.65,150.62,1.6428]
[1751269691333,3.34887381,150.65,150.62,1.6428]
[1751269691636,3.34887381,150.65,150.63,0.2]
[1751269693140,0.1,150.65,150.63,0.2]
[1751269693432,0.1,150.65,150.63,5.51090159]
[1751269693638,0.1,150.65,150.64,18.64964886]
[1751269694013,0.1,150.65,150.63,5.51090159]
[1751269694217,0.1,150.65,150.63,8.7597754]
[1751269695032,0.1,150.65,150.64,3.24887381]
[1751269695742,0.1,150.65,150.63,96.3597754]
[1751269696452,0.1,150.65,150.63,93.11090159]
[1751269696639,0.1,150.65,150.63,87.8]
[1751269697415,0.1,150.65,150.64,21.89852267]
[1751269698032,0.1,150.65,150.64,27.20919712]
[1751269703356,0.1,150.65,150.64,5.31067445]
[1751269705961,0.1,150.65,150.64,8.55954826]
[1751269706658,0.1,150.65,150.64,27.20919712]
[1751269706852,0.1,150.65,150.64,114.80919712]
[1751269708337,0.1,150.65,150.64,115.09352026]
[1751269722276,0.1,150.65,150.64,114.80919712]
[1751269723149,0.1,150.65,150.64,115.09352026]
[1751269729552,0.1,150.65,150.64,120.91352026]
[1751269733478,0.1,150.65,150.64,133.9090155]
[1751269734161,0.1,150.65,150.64,120.91352026]
[1751269738968,0.1,150.65,150.64,133.9090155]
[1751269739166,0.1,150.67,150.66,18.64964886]
[1751269739573,0.1,150.67,150.66,21.89852267]
[1751269741289,0.1,150.67,150.66,8.55884327]
[1751269742174,0.1,150.67,150.66,27.49281527]
[1751269742381,0.1,150.67,150.66,142.09281527]
[1751269742897,0.1,150.67,150.66,168.09281527]
[1751269744199,0.1,150.69,150.68,22.18284581]
[1751269744379,0.1,150.69,150.68,136.78284581]
[1751269745196,0.1,150.69,150.68,142.09211047]
[1751269747882,0.1,150.69,150.68,114.99211047]
[1751269753089,0.1,150.69,150.68,114.70778733]
[1751269753786,0.1,150.69,150.68,111.45891352]
[1751269754017,0.1,150.69,150.68,114.70778733]
[1751269754507,0.1,150.69,150.68,111.45891352]
[1751269754707,0.1,150.69,150.68,114.70778733]
[1751269755811,0.1,150.69,150.68,111.45891352]
[1751269756013,0.1,150.69,150.68,114.70778733]
[1751269756307,0.1,150.69,150.68,114.99211047]
[1751269757103,0.1,150.69,150.68,142.07211047]
[1751269757495,0.1,150.69,150.68,138.82323666]
[1751269757803,0.1,150.69,150.68,142.07211047]
[1751269769808,0.1,150.69,150.68,92.80926466]
[1751269770218,0.1,150.69,150.68,96.05813847]
[1751269770727,0.1,150.69,150.68,101.85813847]
[1751269771920,0.1,150.69,150.68,14.35813847]
[1751269772306,0.1,150.69,150.68,33.29211047]
[1751269772922,0.1,150.69,150.68,60.37211047]
[1751269774704,0.1,150.69,150.68,11.10926466]
[1751269775204,0.1,150.69,150.68,5.8]
[1751269775922,0.1,150.69,150.68,33.00778733]
[1751269776299,0.1,150.69,150.68,11.10926466]
[1751269779330,0.1,150.69,150.68,14.35813847]
[1751269780233,0.1,150.69,150.68,11.10926466]
[1751269781539,0.1,150.69,150.68,102.24246161]
[1751269781738,0.1,150.69,150.68,120.60778733]
[1751269783843,0.1,150.69,150.68,98.70926466]
[1751269784635,0.1,150.69,150.68,5.8]
[1751269784819,0.1,150.69,150.68,11.10926466]
[1751269785016,0.1,150.69,150.68,33.00778733]
[1751269785315,0.1,150.69,150.68,33.29211047]
[1751269785641,0.1,150.69,150.68,33.00778733]
[1751269788212,0.1,150.69,150.68,120.89211047]
[1751269789913,0.1,150.69,150.68,117.64323666]
[1751269790116,0.1,150.69,150.68,120.89211047]
[1751269791634,0.1,150.69,150.68,147.99211047]
[1751269792618,0.1,150.69,150.68,152.92535116]
[1751269793624,0.1,150.69,150.68,147.99211047]
[1751269794126,0.1,150.72,150.69,18.933972]
[1751269794327,0.1,150.72,150.71,3.24887381]
[1751269796318,0.1,150.72,150.71,8.55708162]
[1751269796624,0.1,150.72,150.71,5.30820781]
[1751269797140,0.1,150.72,150.71,8.55708162]
[1751269797349,0.1,150.72,150.71,27.20673048]
[1751269799931,0.1,150.72,150.71,27.49105362]
[1751269800333,1.7379,150.76,150.71,27.49105362]
[1751269800334,0.1,150.76,150.71,126.42337621]
[1751269800539,0.1,150.76,150.75,3.24887381]
[1751269800738,0.1,150.76,150.75,9.04887381]
[1751269802139,0.1,150.76,150.75,14.35567314]
[1751269802755,0.1,150.76,150.75,29.75644819]
[1751269802958,0.1,150.76,150.67,29.91]
[1751269802959,16.69501347,150.76,150.68,5.8]
[1751269803139,13.44613966,150.76,150.68,5.8]
[1751269803454,3.24887381,150.69,150.68,5.8]
[1751269803626,11.28837381,150.69,150.68,5.8]
[1751269803826,13.11465217,150.69,150.68,5.8]
[1751269804731,26.0,150.73,150.68,11.10926466]
[1751269805043,5.07515217,150.71,150.68,11.10926466]
[1751269809028,0.07515217,150.71,150.68,11.10926466]
[1751269809342,26.0,150.74,150.68,24.38242632]
[1751269809664,6.4667,150.75,150.69,5.07515217]
[1751269809874,6.4667,150.75,150.7,5.07515217]
[1751269810036,11.54185217,150.75,150.7,5.07515217]
[1751269810354,5.07515217,150.74,150.71,5.30820781]
[1751269810862,6.4667,150.75,150.71,5.30820781]
[1751269810863,11.54185217,150.75,150.71,5.30820781]
[1751269811654,4.90008028,150.74,150.71,5.30820781]
[1751269813355,11.54185217,150.75,150.71,5.30820781]
[1751269813559,5.07515217,150.73,150.69,23.95856119]
[1751269815052,5.07515217,150.73,150.69,37.23084203]
[1751269815965,5.07515217,150.72,150.69,18.58119317]
[1751269816367,6.4667,150.75,150.69,18.58119317]
[1751269816666,5.07515217,150.73,150.69,18.58119317]
[1751269818767,6.4667,150.75,150.69,18.58119317]
[1751269818962,5.07515217,150.73,150.69,18.58119317]
[1751269821470,6.4667,150.75,150.69,18.58119317]
[1751269821768,5.07515217,150.74,150.69,23.65634534]
[1751269823371,5.07515217,150.74,150.69,18.58119317]
[1751269823554,5.07515217,150.74,150.69,23.65634534]
[1751269824254,5.07515217,150.74,150.69,18.58119317]
[1751269824774,5.07515217,150.74,150.69,23.65634534]
[1751269825157,5.07515217,150.74,150.69,23.85634534]
[1751269825353,5.17515217,150.74,150.69,23.85634534]
[1751269825874,3.34508575,150.74,150.69,22.02627892]
[1751269828976,3.24508575,150.73,150.69,22.02627892]
[1751269831860,3.34508575,150.74,150.69,22.02627892]
[1751269832983,0.1,150.74,150.69,18.78119317]
[1751269833280,0.1,150.74,150.69,22.02627892]
[1751269833481,3.34508575,150.74,150.69,22.02627892]
[1751269835563,0.1,150.74,150.71,3.24508575]
[1751269835880,0.1,150.74,150.72,3.24508575]
[1751269837103,0.1,150.74,150.73,5.30750348]
[1751269838822,0.1,150.74,150.72,5.30785562]
[1751269842322,0.1,150.74,150.71,92.90807985]
[1751269842530,3.34508575,150.74,150.71,87.6]
[1751269842825,3.34508575,150.74,150.71,92.90820111]
[1751269843003,3.34508575,150.74,150.71,87.6]
[1751269845923,3.34508575,150.74,150.7,5.30844491]
[1751269847623,0.1,150.74,150.71,18.64964886]
[1751269847844,0.1,150.74,150.71,21.89473461]
[1751269848408,0.1,150.74,150.71,18.64964886]
[1751269849631,0.1,150.74,150.71,23.95768049]
[1751269851536,0.1,150.74,150.7,5.3084851]
[1751269852523,0.1,150.74,150.71,18.64964886]
[1751269853443,0.1,150.74,150.71,23.95774845]
[1751269854836,0.1,150.74,150.71,5.30809959]
[1751269855159,3.24508575,150.73,150.69,0.2]
[1751269855518,5.40715303,150.74,150.69,0.2]
[1751269855519,3.24508575,150.72,150.69,0.2]
[1751269855942,0.1,150.74,150.69,24.15851882]
[1751269856141,3.34508575,150.74,150.69,27.40360457]
[1751269856535,3.24508575,150.73,150.69,24.15851882]
[1751269856920,0.1,150.74,150.69,5.50886996]
[1751269857124,3.24508575,150.73,150.69,5.50886996]
[1751269857821,5.07117592,150.73,150.69,5.50886996]
[1751269859947,0.1,150.74,150.7,23.72082478]
[1751269861049,0.1,150.74,150.69,98.18004588]
[1751269861050,5.17117592,150.74,150.69,98.18004588]
[1751269862555,10.47837523,150.74,150.69,98.18004588]
[1751269862746,5.17117592,150.74,150.69,98.18004588]
[1751269863245,0.1,150.74,150.69,93.10886996]
[1751269863446,0.1,150.74,150.69,98.18004588]
[1751269864029,5.17117592,150.74,150.69,98.18004588]
[1751269865359,0.1,150.74,150.69,98.18004588]
[1751269865561,0.1,150.74,150.7,5.07117592]
[1751269865731,0.1,150.74,150.72,5.07117592]
[1751269866555,0.1,150.74,150.73,5.07117592]
[1751269867174,0.1,150.74,150.7,106.24964886]
[1751269867355,0.1,150.74,150.73,5.07117592]
[1751269868047,0.1,150.74,150.73,10.3786794]
[1751269869776,0.1,150.74,150.73,5.30750348]
[1751269876582,0.1,150.74,150.71,10.37938373]
[1751269877084,0.1,150.74,150.72,5.86]
[1751269877890,0.1,150.74,150.72,11.16750755]
[1751269878161,0.1,150.74,150.7,106.24964886]
[1751269878162,3.24399001,150.73,150.7,87.6]
[1751269878360,3.24399001,150.72,150.69,5.50887374]
[1751269881893,5.07152335,150.72,150.69,5.50887374]
[1751269883185,5.07152335,150.72,150.69,0.2]
[1751269883998,31.17152335,150.74,150.69,29.51428161]
[1751269884370,5.17152335,150.74,150.69,29.51428161]
[1751269884581,0.1,150.74,150.7,5.07152335]
[1751269885181,0.1,150.74,150.69,29.51428161]
[1751269886501,0.1,150.74,150.71,5.30820781]
[1751269887404,0.1,150.74,150.71,10.37973116]
[1751269890296,0.1,150.74,150.71,5.30820781]
[1751269890801,0.1,150.74,150.71,5.50820781]
[1751269891183,5.17152335,150.74,150.71,0.2]
[1751269891379,0.1,150.74,150.71,29.22907366]
[1751269891579,0.1,150.74,150.71,24.15755031]
[1751269892485,0.1,150.74,150.71,29.22907366]
[1751269894406,0.1,150.74,150.71,35.08907366]
[1751269894583,0.1,150.74,150.71,30.01755031]
[1751269897419,0.1,150.74,150.72,5.07152335]
[1751269897782,0.1,150.74,150.71,30.01755031]
[1751269898410,0.1,150.74,150.71,35.08907366]
[1751269901717,0.1,150.74,150.71,30.01755031]
[1751269903011,5.07152335,150.72,150.71,0.2]
[1751269903811,3.24601792,150.72,150.71,0.2]
[1751269904314,29.34601792,150.74,150.71,0.2]
[1751269905820,31.17025424,150.74,150.71,0.2]
[1751269907425,5.07025424,150.73,150.71,0.2]
[1751269907608,26.1,150.74,150.71,5.50815845]
[1751269907609,0.1,150.74,150.71,5.50815845]
[1751269908230,5.17025424,150.74,150.71,5.50815845]
[1751269910532,0.1,150.74,150.71,5.50815845]
[1751269911310,0.1,150.74,150.71,11.34815845]
[1751269916242,5.17025424,150.74,150.71,11.34815845]
[1751269917346,0.1,150.74,150.71,11.34815845]
[1751269924736,5.07025424,150.73,150.71,6.04]
[1751269925730,3.24565714,150.73,150.71,6.04]
[1751269925950,0.1,150.74,150.71,6.04]
[1751269926136,3.24565714,150.73,150.71,6.04]
[1751269927245,0.1,150.74,150.71,11.34814413]
[1751269932851,3.34565714,150.74,150.71,6.04]
[1751269933025,3.24565714,150.73,150.71,6.04]
[1751269934042,0.1,150.74,150.71,11.34796709]
[1751269947561,3.34565714,150.74,150.71,11.34796709]
[1751269947739,0.1,150.74,150.71,11.34796709]
[1751269956474,3.34565714,150.74,150.71,11.34796709]
[1751269956981,3.24565714,150.73,150.71,11.34796709]
[1751269958590,3.24565714,150.73,150.71,6.04]
[1751269959490,3.24565714,150.72,150.71,0.2]
[1751269960180,0.1,150.74,150.71,0.2]
[1751269960378,3.34565714,150.74,150.71,0.2]
[1751269960575,3.34565714,150.74,150.71,5.50790789]
[1751269960787,29.34565714,150.74,150.71,5.50790789]
[1751269962890,26.1,150.74,150.71,5.50790789]
[1751269963185,0.1,150.74,150.71,5.50790789]
[1751269963773,0.1,150.74,150.71,11.32790789]
[1751269966675,0.1,150.74,150.72,18.933972]
[1751269966987,0.1,150.74,150.73,5.30750348]
[1751269967362,0.1,150.74,150.72,5.30776746]
[1751269970898,0.1,150.74,150.72,23.95741632]
[1751269982904,0.1,150.74,150.72,5.30776746]
[1751269984386,0.1,150.74,150.72,8.5534246]
[1751269984902,0.1,150.74,150.72,5.30776746]
[1751269988112,0.1,150.74,150.73,3.24565714]
[1751269989196,0.1,150.74,150.72,5.30776746]
[1751269989503,0.1,150.74,150.73,3.24565714]
[1751269990186,0.1,150.74,150.72,8.5534246]
[1751269990917,0.1,150.74,150.72,5.30776746]
[1751269991112,0.1,150.74,150.72,8.5534246]
[1751269991907,0.1,150.74,150.72,5.30776746]
[1751269992430,3.24565714,150.73,150.71,0.2]
[1751269992611,3.24565714,150.72,150.71,0.2]
[1751269994244,16.2282857,150.72,150.71,0.2]
[1751269994614,21.53614132,150.72,150.71,0.2]
[1751269995004,8.55351276,150.72,150.71,0.2]
[1751269996025,10.38175947,150.72,150.71,0.2]
[1751269997129,15.45566332,150.72,150.71,0.2]
[1751269997433,21.88036332,150.72,150.71,0.2]
[1751270006109,26.0,150.7,150.69,0.2]
[1751270006343,31.07390385,150.7,150.69,0.2]
[1751270007735,36.3824639,150.7,150.69,0.2]
[1751270008720,39.8408861,150.7,150.69,0.2]
[1751270015742,38.01549624,150.7,150.69,0.2]
[1751270023236,38.01549624,150.7,150.66,0.2]
[1751270023441,3.24851399,150.67,150.66,0.2]
[1751270023640,29.24851399,150.67,150.66,0.2]
[1751270024328,34.55813103,150.67,150.66,0.2]
[1751270024841,74.65218699,150.67,150.64,0.2]
[1751270025153,3.24851399,150.65,150.64,0.2]
[1751270025523,16.24256995,150.65,150.64,0.2]
[1751270026325,21.55289188,150.65,150.64,0.2]
[1751270028730,24.80158496,150.65,150.64,0.2]
[1751270029260,28.26132133,150.65,150.64,0.2]
[1751270040171,8.7700583,150.65,150.64,0.2]
[1751270040339,29.24851399,150.65,150.64,0.2]
[1751270040545,3.24851399,150.65,150.64,0.2]
[1751270040745,29.24851399,150.65,150.64,0.2]
[1751270047482,26.0,150.65,150.64,0.2]
[1751270047688,29.24851399,150.65,150.64,0.2]
[1751270052192,26.0,150.65,150.64,0.2]
[1751270054485,3.24851399,150.66,150.64,0.2]
[1751270054659,26.0,150.65,150.64,0.2]
[1751270056678,3.24851399,150.66,150.64,0.2]
[1751270058997,26.0,150.68,150.64,5.51047343]
[1751270059293,29.24851399,150.68,150.64,5.51047343]
[1751270059490,3.24851399,150.68,150.64,5.51047343]
[1751270060256,3.24851399,150.68,150.64,8.75898742]
[1751270060558,3.24851399,150.69,150.64,8.75898742]
[1751270062183,3.24851399,150.69,150.64,5.51047343]
[1751270062396,3.24851399,150.69,150.64,8.75898742]
[1751270063586,3.24851399,150.69,150.66,5.30996946]
[1751270077701,26.0,150.7,150.66,5.30996946]
[1751270077887,3.24851399,150.69,150.66,5.30996946]
[1751270078578,3.24851399,150.68,150.66,5.30996946]
[1751270080398,3.24851399,150.69,150.66,5.30996946]
[1751270084331,3.24851399,150.68,150.66,5.30996946]
[1751270085495,3.24851399,150.68,150.65,11.11024658]
[1751270088406,3.24851399,150.68,150.65,11.31024658]
[1751270090285,0.1,150.69,150.65,11.31024658]
[1751270090483,3.24851399,150.68,150.65,11.31024658]
[1751270090698,3.34851399,150.69,150.65,11.31024658]
[1751270092909,3.24851399,150.68,150.65,11.31024658]
[1751270096831,0.1,150.69,150.66,0.28432314]
[1751270100018,0.1,150.69,150.67,5.30961704]
[1751270101423,0.1,150.69,150.68,0.28432314]
[1751270101715,0.1,150.69,150.68,3.53283713]
[1751270102096,0.1,150.69,150.68,8.84210179]
[1751270102629,2.94851399,150.73,150.68,8.84210179]
[1751270102928,3.24851399,150.72,150.68,5.5935878]
[1751270104242,3.24851399,150.71,150.68,5.5935878]
[1751270104419,5.40720792,150.74,150.68,5.5935878]
[1751270104420,3.24851399,150.72,150.68,5.5935878]
[1751270105726,3.34851399,150.72,150.68,5.5935878]
[1751270106250,0.1,150.72,150.7,0.28432314]
[1751270107452,0.1,150.72,150.71,5.30820781]
[1751270116056,0.1,150.72,150.7,5.59276494]
[1751270116438,0.1,150.72,150.71,18.64964886]
[1751270116646,0.1,150.72,150.71,21.89816285]
[1751270117058,0.1,150.72,150.71,27.67816285]
[1751270118144,0.1,150.72,150.71,32.98637066]
[1751270125636,0.1,150.72,150.71,29.73785667]
[1751270128861,0.1,150.72,150.71,5.78]
[1751270129046,3.34851399,150.72,150.71,5.78]
[1751270130645,0.1,150.72,150.71,5.78]
[1751270139553,5.40726619,150.74,150.71,5.78]
[1751270139759,3.24851399,150.73,150.71,5.78]
[1751270140175,3.24851399,150.73,150.71,5.98]
[1751270140484,3.34851399,150.73,150.71,5.98]
[1751270140705,0.1,150.73,150.71,5.98]
[1751270140881,3.34851399,150.73,150.71,5.98]
[1751270144993,3.34851399,150.73,150.71,5.98]
[1751270161787,0.1,150.73,150.71,5.98]
[1751270161987,0.1,150.73,150.71,11.28808005]
[1751270162310,0.1,150.73,150.71,14.53659404]
[1751270164717,0.1,150.73,150.71,11.28808005]
[1751270167522,0.1,150.73,150.72,18.933972]
[1751270167698,0.1,150.73,150.72,22.18248599]
[1751270168599,0.1,150.73,150.72,0.28432314]
[1751270168798,0.1,150.73,150.72,5.59217876]
[1751270170916,0.1,150.73,150.72,27.49034161]
[1751270171700,0.1,150.73,150.72,24.24182762]
[1751270172417,0.1,150.73,150.72,27.49034161]
[1751270180228,0.1,150.73,150.71,11.28809888]
[1751270181711,3.34851399,150.73,150.71,5.98]
[1751270182428,3.24851399,150.72,150.71,5.98]
[1751270185234,3.34851399,150.73,150.71,5.98]
[1751270189639,0.1,150.73,150.72,0.28432314]
[1751270189845,0.1,150.73,150.72,3.53283713]
[1751270190635,0.1,150.73,150.72,8.84069275]
[1751270191543,0.1,150.73,150.72,5.59217876]
[1751270195326,0.1,150.73,150.72,8.84069275]
[1751270196048,0.1,150.73,150.72,5.59217876]
[1751270203647,0.1,150.73,150.71,5.98]
[1751270203842,3.24851399,150.72,150.71,5.98]
[1751270209172,8.55636961,150.72,150.71,5.98]
[1751270209370,3.24851399,150.72,150.71,5.98]
[1751270220175,21.55042557,150.72,150.71,0.2]
[1751270220568,8.55636961,150.72,150.71,0.2]
[1751270223289,38.02524396,150.73,150.71,0.2]
[1751270223483,3.24851399,150.72,150.71,0.2]
[1751270230884,8.55636961,150.72,150.71,0.2]
[1751270231881,38.02524267,150.73,150.71,0.2]
[1751270232086,3.24851399,150.72,150.71,0.2]
[1751270235204,0.1,150.73,150.71,0.2]
[1751270235901,3.34851399,150.73,150.71,0.2]
[1751270236086,29.34851399,150.73,150.71,0.2]
[1751270237776,3.24851399,150.72,150.71,0.2]
[1751270239513,0.1,150.73,150.71,8.7567218]
[1751270239685,0.1,150.73,150.71,0.2]
[1751270242308,0.1,150.73,150.71,5.50803727]
[1751270242514,0.1,150.73,150.71,8.75655126]
[1751270244392,0.1,150.73,150.71,5.50803727]
[1751270244795,0.1,150.73,150.71,8.75655126]
[1751270246409,0.1,150.73,150.71,5.50803727]
[1751270255232,3.24851399,150.72,150.71,0.2]
[1751270259124,0.1,150.73,150.71,0.2]
[1751270259328,3.24851399,150.72,150.71,0.2]
[1751270263338,0.1,150.73,150.71,0.2]
[1751270263539,0.1,150.73,150.71,5.50814326]
[1751270267336,0.1,150.73,150.71,8.75665725]
[1751270268160,0.1,150.73,150.71,5.50814326]
[1751270268338,0.1,150.73,150.71,8.75665725]
[1751270269058,0.1,150.73,150.71,5.50814326]
[1751270281364,3.34851399,150.73,150.71,0.2]
[1751270287256,0.1,150.73,150.71,0.2]
[1751270292161,0.1,150.73,150.71,5.50805804]
[1751270293470,0.1,150.73,150.71,8.75657203]
[1751270295073,5.40761214,150.73,150.71,0.2]
[1751270295266,3.24851399,150.72,150.71,0.2]
[1751270299982,8.55636961,150.72,150.71,0.2]
[1751270303198,5.30785562,150.72,150.71,0.2]
[1751270303493,8.55636961,150.72,150.71,0.2]
[1751270312889,11.97836423,150.72,150.71,0.2]
[1751270317770,26.0,150.69,150.68,0.2]
[1751270317976,29.24851399,150.69,150.68,0.2]
[1751270319401,34.55742632,150.69,150.68,0.2]
[1751270333217,37.98335098,150.69,150.68,0.2]